fUSD/lending_fUSD_20241205
["ID","MTS","AMOUNT","RATE_DAILY","PERIOD"]
[344361518,1733373037453,-2889.68,7.498e-05,2]
[344361519,1733373037463,-500.0,7.498e-05,2]
[344361520,1733373037472,-500.0,7.498e-05,2]
[344361521,1733373037481,-500.0,7.498e-05,2]
[344361522,1733373037490,-500.0,7.498e-05,2]
[344361523,1733373037500,-506.63,7.498e-05,2]
[344361524,1733373037509,-500.0,7.499e-05,2]
[344361525,1733373037519,-229.99113493,7.499e-05,2]
[344361526,1733373037528,-500.0,7.499e-05,2]
[344361527,1733373037538,-503.638822,7.499e-05,2]
[344361528,1733373037547,-586.89,7.499e-05,2]
[344361529,1733373037556,-616.89895263,7.499e-05,2]
[344361530,1733373037568,-500.0,7.499e-05,2]
[344361531,1733373037578,-500.0,7.499e-05,2]
[344361532,1733373037588,-500.0,7.499e-05,2]
[344361533,1733373037597,-500.0,7.499e-05,2]
[344361534,1733373037606,-500.0,7.499e-05,2]
[344361535,1733373037616,-500.0,7.499e-05,2]
[344361536,1733373037625,-500.0,7.499e-05,2]
[344361537,1733373037634,-500.0,7.499e-05,2]
[344361538,1733373037644,-500.0,7.499e-05,2]
[344361539,1733373037653,-449.04,7.499e-05,2]
[344361540,1733373037663,-570.60808879,7.499e-05,2]
[344361541,1733373037673,-500.0,7.499e-05,2]
[344361542,1733373037682,-500.0,7.499e-05,2]
[344361543,1733373037692,-500.0,7.499e-05,2]
[344361544,1733373037702,-500.0,7.499e-05,2]
[344361545,1733373037711,-150.09753772,7.499e-05,2]
[344361546,1733373037721,-500.0,7.499e-05,2]
[344361547,1733373037731,-583.53262861,7.499e-05,2]
[344361548,1733373037740,-641.30450492,7.499e-05,2]
[344361549,1733373037750,-508.63305889,7.499e-05,2]
[344361550,1733373037760,-500.0,7.499e-05,2]
[344361551,1733373037770,-510.87495767,7.499e-05,2]
[344361552,1733373037780,-505.89716123,7.499e-05,2]
[344361553,1733373037790,-500.0,7.499e-05,2]
[344361554,1733373037801,-500.0,7.499e-05,2]
[344361555,1733373037814,-458.97476186,7.499e-05,2]
[344361556,1733373037824,-512.00312603,7.499e-05,2]
[344361557,1733373037835,-500.0,7.499e-05,2]
[344361558,1733373037844,-241.83,7.499e-05,2]
[344361559,1733373037855,-500.0,7.499e-05,2]
[344361560,1733373037865,-500.0,7.499e-05,2]
[344361561,1733373037875,-500.0,7.499e-05,2]
[344361562,1733373037886,-500.0,7.499e-05,2]
[344361563,1733373037895,-500.0,7.499e-05,2]
[344361564,1733373037905,-500.0,7.499e-05,2]
[344361565,1733373037915,-500.0,7.499e-05,2]
[344361566,1733373037926,-500.0,7.499e-05,2]
[344361567,1733373037936,-500.0,7.499e-05,2]
[344361568,1733373037945,-164.08603814,7.499e-05,2]
[344361569,1733373037954,-500.0,7.499e-05,2]
[344361570,1733373037963,-500.0,7.499e-05,2]
[344361571,1733373037973,-500.0,7.499e-05,2]
[344361572,1733373037982,-500.0,7.499e-05,2]
[344361573,1733373037992,-500.0,7.499e-05,2]
[344361574,1733373038012,-500.0,7.499e-05,2]
[344361575,1733373038032,-287.50650345,7.499e-05,2]
[344361576,1733373038044,-452.39286548,7.499e-05,2]
[344361577,1733373038055,-500.0,7.499e-05,2]
[344361578,1733373038069,-500.0,7.499e-05,2]
[344361579,1733373038080,-500.80757335,7.499e-05,2]
[344361581,1733373038090,-500.0,7.499e-05,2]
[344361582,1733373038100,-500.0,7.499e-05,2]
[344361583,1733373038110,-500.0,7.499e-05,2]
[344361584,1733373038120,-500.0,7.499e-05,2]
[344361585,1733373038129,-500.0,7.499e-05,2]
[344361586,1733373038140,-500.0,7.499e-05,2]
[344361588,1733373038149,-500.0,7.499e-05,2]
[344361591,1733373038158,-484.71570816,7.499e-05,2]
[344361592,1733373038167,-500.0,7.499e-05,2]
[344361593,1733373038176,-500.0,7.499e-05,2]
[344361594,1733373038185,-500.0,7.499e-05,2]
[344361595,1733373038194,-500.0,7.499e-05,2]
[344361597,1733373038203,-500.0,7.499e-05,2]
[344361599,1733373038212,-405.74496756,7.499e-05,2]
[344361601,1733373038222,-500.0,7.499e-05,2]
[344361603,1733373038231,-221.04484359,7.499e-05,2]
[344361605,1733373038240,-500.0,7.499e-05,2]
[344361607,1733373038250,-500.0,7.499e-05,2]
[344361609,1733373038259,-500.0,7.499e-05,2]
[344361611,1733373038268,-500.0,7.499e-05,2]
[344361613,1733373038277,-500.0,7.499e-05,2]
[344361615,1733373038286,-640.33813109,7.499e-05,2]
[344361617,1733373038295,-500.0,7.499e-05,2]
[344361619,1733373038305,-500.0,7.499e-05,2]
[344361620,1733373038317,-500.0,7.499e-05,2]
[344361621,1733373038329,-500.0,7.499e-05,2]
[344361622,1733373038338,-500.0,7.499e-05,2]
[344361623,1733373038348,-500.0,7.499e-05,2]
[344361624,1733373038358,-500.0,7.499e-05,2]
[344361625,1733373038367,-500.0,7.499e-05,2]
[344361626,1733373038377,-500.0,7.499e-05,2]
[344361627,1733373038386,-500.0,7.499e-05,2]
[344361628,1733373038396,-500.0,7.499e-05,2]
[344361629,1733373038405,-500.0,7.499e-05,2]
[344361630,1733373038415,-543.92786231,7.499e-05,2]
[344361631,1733373038424,-500.0,7.499e-05,2]
[344361632,1733373038434,-214.01976111,7.499e-05,2]
[344361633,1733373038443,-232.25450245,7.499e-05,2]
[344361634,1733373038453,-500.0,7.499e-05,2]
[344361635,1733373038462,-500.0,7.499e-05,2]
[344361636,1733373038471,-500.0,7.499e-05,2]
[344361637,1733373038480,-595.47285431,7.499e-05,2]
[344361638,1733373038490,-427.47841317,7.499e-05,2]
[344361639,1733373038499,-545.09557626,7.499e-05,2]
[344361640,1733373038509,-502.37192218,7.499e-05,2]
[344361641,1733373038518,-290.56,7.499e-05,2]
[344361642,1733373038527,-500.0,7.499e-05,2]
[344361643,1733373038537,-500.0,7.499e-05,2]
[344361644,1733373038547,-476.64397808,7.499e-05,2]
[344361645,1733373038556,-500.0,7.499e-05,2]
[344361646,1733373038570,-500.0,7.499e-05,2]
[344361647,1733373038579,-535.88,7.499e-05,2]
[344361648,1733373038588,-500.0,7.499e-05,2]
[344361649,1733373038597,-500.0,7.499e-05,2]
[344361650,1733373038607,-459.44,7.499e-05,2]
[344361651,1733373038615,-289.44,7.499e-05,2]
[344361652,1733373038624,-500.0,7.499e-05,2]
[344361653,1733373038635,-500.0,7.499e-05,2]
[344361654,1733373038644,-500.0,7.499e-05,2]
[344361655,1733373038654,-500.0,7.499e-05,2]
[344361656,1733373038663,-500.0,7.499e-05,2]
[344361657,1733373038673,-500.0,7.499e-05,2]
[344361658,1733373038682,-500.0,7.499e-05,2]
[344361659,1733373038692,-500.0,7.499e-05,2]
[344361660,1733373038703,-500.0,7.499e-05,2]
[344361661,1733373038713,-500.0,7.499e-05,2]
[344361662,1733373038722,-500.0,7.499e-05,2]
[344361663,1733373038732,-500.0,7.499e-05,2]
[344361664,1733373038741,-500.0,7.499e-05,2]
[344361665,1733373038750,-500.0,7.499e-05,2]
[344361666,1733373038760,-500.0,7.499e-05,2]
[344361667,1733373038769,-327.25,7.499e-05,2]
[344361668,1733373038778,-500.0,7.499e-05,2]
[344361669,1733373038788,-500.0,7.499e-05,2]
[344361670,1733373038797,-500.0,7.499e-05,2]
[344361671,1733373038806,-500.0,7.499e-05,2]
[344361672,1733373038818,-500.0,7.499e-05,2]
[344361673,1733373038827,-500.0,7.499e-05,2]
[344361674,1733373038837,-500.0,7.499e-05,2]
[344361675,1733373038846,-500.0,7.499e-05,2]
[344361676,1733373038856,-500.0,7.499e-05,2]
[344361677,1733373038865,-500.0,7.499e-05,2]
[344361678,1733373038874,-500.0,7.499e-05,2]
[344361679,1733373038884,-500.0,7.499e-05,2]
[344361680,1733373038893,-500.0,7.499e-05,2]
[344361681,1733373038902,-500.0,7.499e-05,2]
[344361682,1733373038914,-500.0,7.499e-05,2]
[344361683,1733373038924,-500.0,7.499e-05,2]
[344361684,1733373038933,-500.0,7.499e-05,2]
[344361685,1733373038942,-500.0,7.499e-05,2]
[344361686,1733373038952,-500.0,7.499e-05,2]
[344361687,1733373038961,-500.0,7.499e-05,2]
[344361688,1733373038971,-500.0,7.499e-05,2]
[344361689,1733373038980,-638.2,7.499e-05,2]
[344361690,1733373038989,-500.0,7.499e-05,2]
[344361691,1733373038998,-603.02,7.499e-05,2]
[344361692,1733373039007,-486.95553267,7.499e-05,2]
[344361693,1733373039016,-542.29,7.499e-05,2]
[344361694,1733373039026,-1574.14,7.499e-05,2]
[344361695,1733373039035,-500.0,7.499e-05,2]
[344361696,1733373039044,-655.76,7.499e-05,2]
[344361697,1733373039054,-500.0,7.499e-05,2]
[344361698,1733373039066,-186.12089066,7.499e-05,2]
[344361699,1733373039076,-500.0,7.499e-05,2]
[344361700,1733373039086,-197.43710551,7.499e-05,2]
[344361701,1733373039095,-2889.68,7.499e-05,2]
[344361702,1733373039105,-2889.68,7.499e-05,2]
[344361703,1733373039114,-2889.68,7.499e-05,2]
[344361704,1733373039124,-2889.68,7.499e-05,2]
[344361705,1733373039133,-2889.68,7.499e-05,2]
[344361706,1733373039142,-2889.68,7.499e-05,2]
[344361707,1733373039153,-2889.68,7.499e-05,2]
[344361708,1733373039163,-2889.68,7.499e-05,2]
[344361709,1733373039172,-2889.68,7.499e-05,2]
[344361710,1733373039181,-2889.68,7.499e-05,2]
[344361711,1733373039191,-2889.68,7.499e-05,2]
[344361712,1733373039201,-2889.68,7.499e-05,2]
[344361713,1733373039211,-2889.68,7.499e-05,2]
[344361714,1733373039220,-2889.68,7.499e-05,2]
[344361715,1733373039230,-2889.68,7.499e-05,2]
[344361716,1733373039239,-2889.68,7.499e-05,2]
[344361717,1733373039248,-2889.68,7.499e-05,2]
[344361718,1733373039258,-2889.68,7.499e-05,2]
[344361719,1733373039268,-2889.68,7.499e-05,2]
[344361720,1733373039276,-2889.72152578,7.499e-05,2]
[344361721,1733373039286,-500.0,7.499e-05,2]
[344361722,1733373039295,-500.0,7.499e-05,2]
[344361723,1733373039312,-500.0,7.499e-05,2]
[344361724,1733373039322,-500.0,7.499e-05,2]
[344361725,1733373039332,-500.0,7.499e-05,2]
[344361726,1733373039342,-500.0,7.499e-05,2]
[344361727,1733373039352,-500.0,7.499e-05,2]
[344361728,1733373039361,-500.0,7.499e-05,2]
[344361729,1733373039371,-500.0,7.499e-05,2]
[344361730,1733373039381,-500.0,7.499e-05,2]
[344361731,1733373039390,-500.0,7.499e-05,2]
[344361732,1733373039400,-500.0,7.499e-05,2]
[344361733,1733373039409,-500.0,7.499e-05,2]
[344361734,1733373039419,-500.0,7.499e-05,2]
[344361735,1733373039428,-500.0,7.499e-05,2]
[344361736,1733373039438,-500.0,7.499e-05,2]
[344361737,1733373039447,-500.0,7.499e-05,2]
[344361738,1733373039457,-511.76,7.499e-05,2]
[344361739,1733373039467,-500.0,7.499e-05,2]
[344361740,1733373039477,-1400.0,7.5e-05,2]
[344361741,1733373039486,-172652.26400744,7.5e-05,2]
[344361742,1733373039534,-500.0,7.499e-05,2]
[344361743,1733373039544,-17189.34945992,7.5e-05,2]
[344361746,1733373040139,-274.4,7.499e-05,2]
[344361747,1733373040150,-101616.37269915,7.5e-05,2]
[344361748,1733373040166,-300.66708319,7.5e-05,2]
[344361749,1733373040177,-50739.27538076,7.5e-05,2]
[344361750,1733373040189,-147849.16225393,7.5e-05,2]
[344361751,1733373040205,-37989284.7016068,7.5e-05,2]
[344361752,1733373040217,-3389.80153293,7.5e-05,2]
[344361753,1733373040320,-5126.0,7.5e-05,2]
[344361754,1733373040334,-1159.18238222,7.5e-05,2]
[344361755,1733373040370,-500.0,7.499e-05,2]
[344361756,1733373040381,-184.8166313,7.499e-05,2]
[344361757,1733373040390,-1142.6136787,7.5e-05,2]
[344361758,1733373040455,-500.0,7.499e-05,2]
[344361759,1733373040465,-371.40807384,7.499e-05,2]
[344361760,1733373040497,-128.59192616,7.499e-05,2]
[344361761,1733373040507,-500.0,7.499e-05,2]
[344361762,1733373040517,-163.49914847,7.499e-05,2]
[344361763,1733373040526,-291.26761228,7.499e-05,2]
[344361764,1733373040536,-500.0,7.499e-05,2]
[344361765,1733373040545,-18964.60955634,7.5e-05,2]
[344361767,1733373043291,-433.30353321,7.499e-05,2]
[344361770,1733373043404,-66.69646679,7.499e-05,2]
[344361771,1733373043413,-500.0,7.499e-05,2]
[344361772,1733373043424,-500.0,7.499e-05,2]
[344361773,1733373043433,-280.25861468,7.499e-05,2]
[344361774,1733373043445,-219.74138532,7.499e-05,2]
[344361775,1733373043454,-500.0,7.499e-05,2]
[344361776,1733373043463,-5687.77170005,7.5e-05,2]
[344361777,1733373043630,-4694.12745921,7.5e-05,2]
[344361778,1733373043641,-2936.03448741,7.5e-05,2]
[344361779,1733373043654,-8986.03321899,7.5e-05,2]
[344361780,1733373043665,-1990.85884672,7.5e-05,2]
[344361781,1733373043677,-2897.59696682,7.5e-05,2]
[344361782,1733373043690,-2015.86100188,7.5e-05,2]
[344361783,1733373043741,-500.0,7.397e-05,2]
[344361784,1733373043751,-68176.46424259,7.5e-05,2]
[344361785,1733373043762,-31629.22849707,7.5e-05,2]
[344361786,1733373043774,-1432.30532102,7.5e-05,2]
[344361812,1733373046166,-500.0,7.398e-05,2]
[344361814,1733373046175,-500.0,7.398e-05,2]
[344361816,1733373046185,-500.0,7.498e-05,2]
[344361818,1733373046194,-3629.0,7.5e-05,2]
[344361819,1733373046224,-781.70436656,7.5e-05,2]
[344361820,1733373046235,-246601.70625912,7.5e-05,2]
[344361821,1733373046246,-773340.0,7.5e-05,2]
[344361823,1733373046683,-3797.18091893,7.5e-05,2]
[344361824,1733373046695,-5134.988233,7.5e-05,2]
[344361825,1733373046707,-20571.06,7.5e-05,2]
[344361826,1733373046719,-4585.43763834,7.5e-05,2]
[344361827,1733373046730,-1710.76275647,7.5e-05,2]
[344361828,1733373046748,-69690.59200918,7.5e-05,2]
[344361830,1733373126238,1574750.0,0.00021,120]
[344361831,1733373136464,496965.09329,0.0002,120]
[344361832,1733373136493,14503034.90671,0.0002,120]
[344361833,1733373150186,496965.09329,0.0002,120]
[344361834,1733373151069,-300.0,7.298e-05,2]
[344361835,1733373151098,-2500.0,7.299e-05,2]
[344361836,1733373151122,-245000.0,7.299e-05,2]
[344361837,1733373151148,-279517.4602,7.299e-05,2]
[344361838,1733373151175,-500.0,7.397e-05,2]
[344361839,1733373151198,-640.55,7.397e-05,2]
[344361840,1733373151220,-500.0,7.397e-05,2]
[344361841,1733373151244,-500.0,7.397e-05,2]
[344361842,1733373151267,-349.72479654,7.397e-05,2]
[344361843,1733373151611,-326.0105,7.397e-05,2]
[344361844,1733373151637,-500.0,7.397e-05,2]
[344361845,1733373151663,-500.0,7.397e-05,2]
[344361846,1733373151685,-500.0,7.397e-05,2]
[344361847,1733373151707,-500.0,7.397e-05,2]
[344361848,1733373151730,-500.0,7.397e-05,2]
[344361849,1733373151752,-500.0,7.397e-05,2]
[344361850,1733373151773,-188.62937587,7.397e-05,2]
[344361851,1733373151795,-500.0,7.397e-05,2]
[344361852,1733373151817,-284.62022521,7.397e-05,2]
[344361853,1733373151839,-500.0,7.398e-05,2]
[344361854,1733373151861,-500.0,7.398e-05,2]
[344361855,1733373151884,-640.55,7.398e-05,2]
[344361856,1733373151908,-640.55,7.398e-05,2]
[344361857,1733373151930,-500.0,7.398e-05,2]
[344361858,1733373151952,-500.0,7.398e-05,2]
[344361859,1733373151981,-546.46,7.398e-05,2]
[344361860,1733373152006,-546.46,7.398e-05,2]
[344361861,1733373152029,-546.46,7.398e-05,2]
[344361862,1733373152051,-500.0,7.398e-05,2]
[344361863,1733373152074,-500.0,7.398e-05,2]
[344361864,1733373152096,-500.0,7.398e-05,2]
[344361865,1733373152118,-500.0,7.398e-05,2]
[344361866,1733373152139,-500.0,7.398e-05,2]
[344361867,1733373152167,-500.0,7.398e-05,2]
[344361868,1733373152188,-500.0,7.398e-05,2]
[344361869,1733373152210,-500.0,7.398e-05,2]
[344361870,1733373152231,-500.0,7.398e-05,2]
[344361871,1733373152253,-500.0,7.398e-05,2]
[344361872,1733373152275,-500.0,7.398e-05,2]
[344361873,1733373152296,-376.15,7.398e-05,2]
[344361874,1733373152319,-500.0,7.398e-05,2]
[344361875,1733373152341,-500.0,7.398e-05,2]
[344361876,1733373152364,-500.0,7.398e-05,2]
[344361877,1733373152385,-500.0,7.398e-05,2]
[344361878,1733373152411,-520.97290697,7.398e-05,2]
[344361879,1733373152433,-500.0,7.398e-05,2]
[344361880,1733373152455,-500.0,7.398e-05,2]
[344361881,1733373152477,-504.99237554,7.398e-05,2]
[344361882,1733373152498,-500.0,7.398e-05,2]
[344361883,1733373152522,-500.0,7.398e-05,2]
[344361884,1733373152544,-500.0,7.398e-05,2]
[344361885,1733373152566,-500.0,7.398e-05,2]
[344361886,1733373152591,-311.02613995,7.473e-05,2]
[344361887,1733373152613,-500.0,7.473e-05,2]
[344361888,1733373152635,-500.0,7.497e-05,2]
[344361889,1733373152660,-500.0,7.498e-05,2]
[344361890,1733373152684,-640.55,7.498e-05,2]
[344361891,1733373152706,-500.0,7.498e-05,2]
[344361892,1733373152730,-546.46,7.498e-05,2]
[344361893,1733373152752,-500.0,7.498e-05,2]
[344361894,1733373152774,-500.0,7.498e-05,2]
[344361895,1733373152796,-500.0,7.498e-05,2]
[344361896,1733373152817,-500.0,7.498e-05,2]
[344361897,1733373152839,-642.96100208,7.498e-05,2]
[344361898,1733373152862,-500.0,7.498e-05,2]
[344361899,1733373152886,-171.92,7.498e-05,2]
[344361900,1733373152912,-506.53,7.499e-05,2]
[344361901,1733373152935,-500.0,7.499e-05,2]
[344361902,1733373152960,-292.62,7.499e-05,2]
[344361903,1733373152982,-324.1,7.499e-05,2]
[344361904,1733373153005,-640.55,7.499e-05,2]
[344361905,1733373153030,-640.55,7.499e-05,2]
[344361906,1733373153054,-640.55,7.499e-05,2]
[344361907,1733373153078,-640.55,7.499e-05,2]
[344361908,1733373153101,-640.55,7.499e-05,2]
[344361909,1733373153126,-640.55,7.499e-05,2]
[344361910,1733373153151,-640.55,7.499e-05,2]
[344361911,1733373153189,-640.55,7.499e-05,2]
[344361912,1733373153214,-640.55,7.499e-05,2]
[344361913,1733373153238,-640.55,7.499e-05,2]
[344361914,1733373153261,-640.55,7.499e-05,2]
[344361915,1733373153285,-640.55,7.499e-05,2]
[344361916,1733373153308,-640.55,7.499e-05,2]
[344361917,1733373153332,-640.55,7.499e-05,2]
[344361918,1733373153355,-640.55,7.499e-05,2]
[344361919,1733373153380,-500.0,7.499e-05,2]
[344361920,1733373153406,-640.55,7.499e-05,2]
[344361921,1733373153429,-500.0,7.499e-05,2]
[344361922,1733373153453,-640.55,7.499e-05,2]
[344361923,1733373153477,-500.0,7.499e-05,2]
[344361924,1733373153501,-640.55,7.499e-05,2]
[344361925,1733373153524,-500.0,7.499e-05,2]
[344361926,1733373153547,-640.55,7.499e-05,2]
[344361927,1733373153569,-640.56000332,7.499e-05,2]
[344361928,1733373153593,-227.44,7.499e-05,2]
[344361929,1733373153617,-500.0,7.499e-05,2]
[344361930,1733373153641,-500.0,7.499e-05,2]
[344361931,1733373153668,-500.0,7.499e-05,2]
[344361932,1733373153699,-500.0,7.499e-05,2]
[344361933,1733373153724,-500.0,7.499e-05,2]
[344361934,1733373153749,-452.14,7.499e-05,2]
[344361935,1733373153774,-500.0,7.499e-05,2]
[344361936,1733373153798,-184.8166313,7.499e-05,2]
[344361937,1733373153823,-500.0,7.499e-05,2]
[344361938,1733373153846,-500.0,7.499e-05,2]
[344361939,1733373153870,-254.49310502,7.499e-05,2]
[344361940,1733373153895,-500.0,7.499e-05,2]
[344361941,1733373153920,-500.0,7.499e-05,2]
[344361942,1733373153944,-500.0,7.499e-05,2]
[344361943,1733373153970,-500.0,7.499e-05,2]
[344361944,1733373153995,-620.82,7.499e-05,2]
[344361945,1733373154019,-393.13177896,7.499e-05,2]
[344361946,1733373154042,-1937.07133901,7.499e-05,2]
[344361947,1733373154066,-453.16,7.499e-05,2]
[344361948,1733373154097,-83293.71906277,7.5e-05,2]
[344361949,1733373268764,-152.0,9.039e-05,7]
[344361950,1733373268800,-152.0,9.192e-05,8]
[344361951,1733373269081,-152.0,9.345e-05,9]
[344361952,1733373269117,-17610.0,9.463e-05,7]
[344361953,1733373269152,-152.0,9.498e-05,10]
[344361954,1733373269188,-152.0,9.651e-05,11]
[344361955,1733373269224,-152.0,9.804e-05,12]
[344361956,1733373269260,-500.0,9.9e-05,7]
[344361957,1733373269294,-500.0,9.9e-05,7]
[344361958,1733373269328,-152.0,9.958e-05,13]
[344361959,1733373269362,-1500.0,9.984e-05,7]
[344361960,1733373269402,-152.0,0.00010111,14]
[344361961,1733373269436,-150.805827,0.00010155,12]
[344361963,1733373438147,593.08,6.752e-05,2]
[344361964,1733373451586,250.0,6.748e-05,2]
[344361979,1733374040316,250.0,6.778e-05,2]
[344361980,1733374064438,549.23564034,9.984e-05,7]
[344361981,1733374095933,480.1,6.872e-05,2]
[344361999,1733374231416,-1503.22425527,7.199e-05,2]
[344362000,1733374231469,-3217.17574473,7.199e-05,2]
[344362001,1733374231479,-500.0,7.298e-05,2]
[344362002,1733374231489,-150.0,7.37e-05,2]
[344362003,1733374231499,-150.0,7.396e-05,2]
[344362004,1733374231508,-500.0,7.397e-05,2]
[344362005,1733374231518,-179.68197358,7.397e-05,2]
[344362006,1733374231528,-500.0,7.397e-05,2]
[344362007,1733374231538,-500.0,7.397e-05,2]
[344362008,1733374231548,-500.0,7.397e-05,2]
[344362009,1733374231558,-500.0,7.397e-05,2]
[344362010,1733374231568,-500.0,7.397e-05,2]
[344362011,1733374231578,-500.0,7.397e-05,2]
[344362012,1733374231587,-2480.034,7.397e-05,2]
[344362013,1733374231597,-175.144,7.397e-05,2]
[344362014,1733374231609,-500.0,7.397e-05,2]
[344362015,1733374231619,-500.0,7.397e-05,2]
[344362016,1733374231629,-166.5953778,7.397e-05,2]
[344362017,1733374231639,-500.0,7.397e-05,2]
[344362018,1733374231648,-152.0,7.397e-05,2]
[344362019,1733374231658,-500.0,7.397e-05,2]
[344362020,1733374231674,-500.0,7.397e-05,2]
[344362021,1733374231684,-500.0,7.397e-05,2]
[344362022,1733374231694,-500.0,7.397e-05,2]
[344362023,1733374231703,-1039.86,7.397e-05,2]
[344362024,1733374231713,-500.0,7.397e-05,2]
[344362025,1733374231723,-500.0,7.398e-05,2]
[344362026,1733374231732,-435.32181271,7.398e-05,2]
[344362027,1733374231742,-500.0,7.398e-05,2]
[344362028,1733374231753,-528.52902858,7.398e-05,2]
[344362029,1733374231763,-500.0,7.398e-05,2]
[344362030,1733374231774,-500.0,7.398e-05,2]
[344362031,1733374231784,-500.0,7.398e-05,2]
[344362032,1733374231794,-578.23709608,7.398e-05,2]
[344362033,1733374231803,-500.0,7.398e-05,2]
[344362034,1733374231814,-295.42096652,7.398e-05,2]
[344362035,1733374231827,-204.57903348,7.398e-05,2]
[344362036,1733374231838,-502.10854197,7.398e-05,2]
[344362037,1733374231847,-500.0,7.398e-05,2]
[344362038,1733374231859,-500.0,7.398e-05,2]
[344362039,1733374231869,-500.0,7.398e-05,2]
[344362040,1733374231880,-649.36,7.398e-05,2]
[344362041,1733374231890,-158.08940468,7.398e-05,2]
[344362042,1733374231900,-245.66702761,7.398e-05,2]
[344362043,1733374231910,-500.0,7.398e-05,2]
[344362044,1733374231920,-500.0,7.398e-05,2]
[344362045,1733374231929,-500.0,7.398e-05,2]
[344362046,1733374231939,-500.0,7.398e-05,2]
[344362047,1733374231949,-500.0,7.398e-05,2]
[344362048,1733374231959,-500.0,7.398e-05,2]
[344362049,1733374231968,-1039.86,7.398e-05,2]
[344362050,1733374231978,-1039.86,7.398e-05,2]
[344362051,1733374231988,-500.0,7.398e-05,2]
[344362052,1733374231998,-129.35587935,7.398e-05,2]
[344362053,1733374232011,-370.64412065,7.398e-05,2]
[344362054,1733374232021,-489.58515867,7.4e-05,2]
[344362055,1733374232030,-1655.8587,7.4e-05,2]
[344362056,1733374232041,-167.43232862,7.473e-05,2]
[344362057,1733374232051,-535.48212679,7.473e-05,2]
[344362058,1733374232061,-330.0,7.479e-05,2]
[344362059,1733374232071,-501.92630626,7.498e-05,2]
[344362060,1733374232081,-375.23990289,7.498e-05,2]
[344362061,1733374232092,-500.0,7.498e-05,2]
[344362062,1733374232111,-500.0,7.498e-05,2]
[344362063,1733374232122,-500.0,7.498e-05,2]
[344362064,1733374232132,-500.0,7.498e-05,2]
[344362065,1733374232142,-462.27292509,7.498e-05,2]
[344362066,1733374232152,-1039.86,7.498e-05,2]
[344362067,1733374232162,-500.0,7.498e-05,2]
[344362068,1733374232173,-500.0,7.498e-05,2]
[344362069,1733374232183,-500.0,7.499e-05,2]
[344362070,1733374232194,-503.37350341,7.499e-05,2]
[344362071,1733374232204,-500.0,7.499e-05,2]
[344362072,1733374232214,-417.12093884,7.499e-05,2]
[344362073,1733374232224,-500.0,7.499e-05,2]
[344362074,1733374232235,-500.0,7.499e-05,2]
[344362075,1733374232245,-290.57959148,7.499e-05,2]
[344362076,1733374232255,-500.0,7.499e-05,2]
[344362077,1733374232265,-500.0,7.499e-05,2]
[344362078,1733374232275,-500.0,7.499e-05,2]
[344362079,1733374232285,-500.0,7.499e-05,2]
[344362080,1733374232295,-500.0,7.499e-05,2]
[344362081,1733374232309,-500.0,7.499e-05,2]
[344362082,1733374232319,-500.0,7.499e-05,2]
[344362083,1733374232329,-500.0,7.499e-05,2]
[344362084,1733374232339,-500.0,7.499e-05,2]
[344362085,1733374232350,-219.91395964,7.499e-05,2]
[344362086,1733374232363,-500.0,7.499e-05,2]
[344362087,1733374232373,-500.0,7.499e-05,2]
[344362088,1733374232384,-500.0,7.499e-05,2]
[344362089,1733374232394,-500.0,7.499e-05,2]
[344362090,1733374232403,-500.0,7.499e-05,2]
[344362091,1733374232413,-500.0,7.499e-05,2]
[344362092,1733374232423,-500.0,7.499e-05,2]
[344362093,1733374232433,-500.0,7.499e-05,2]
[344362094,1733374232442,-500.0,7.499e-05,2]
[344362095,1733374232452,-627.64,7.499e-05,2]
[344362096,1733374232462,-500.0,7.499e-05,2]
[344362097,1733374232472,-500.0,7.499e-05,2]
[344362098,1733374232481,-516.56,7.499e-05,2]
[344362099,1733374232491,-500.0,7.499e-05,2]
[344362100,1733374232501,-517.72533393,7.499e-05,2]